bitfinex/quotes_SOLUSD_20260113
["timestamp","ask_amount","ask_price","bid_price","bid_amount"]
[1768290124308,2.80140434,140.13,140.1,0.65525768]
[1768290124618,5.30596031,140.12,140.1,0.65525768]
[1768290124917,2.80140434,140.13,140.1,0.65525768]
[1768290125118,5.30616238,140.12,140.1,0.65525768]
[1768290125420,2.80140434,140.13,140.1,0.65525768]
[1768290125607,5.30624597,140.12,140.1,0.65525768]
[1768290125921,2.80140434,140.13,140.1,0.65525768]
[1768290126216,5.30624466,140.12,140.1,0.65525768]
[1768290126410,2.80140434,140.13,140.1,0.65525768]
[1768290126618,5.30613935,140.12,140.1,0.65525768]
[1768290126820,2.80140434,140.13,140.1,0.65525768]
[1768290127022,5.30613805,140.12,140.1,0.65525768]
[1768290127204,2.80140434,140.13,140.1,0.65525768]
[1768290127408,5.30604438,140.12,140.1,0.65525768]
[1768290127609,2.80140434,140.13,140.1,0.65525768]
[1768290127820,5.30613856,140.12,140.1,0.65525768]
[1768290128024,2.80140434,140.13,140.1,0.56761113]
[1768290128202,5.30616316,140.12,140.1,0.56761113]
[1768290128402,2.80140434,140.13,140.1,0.56761113]
[1768290128610,5.30672566,140.12,140.1,0.56761113]
[1768290128811,2.80140434,140.13,140.1,0.56761113]
[1768290129127,5.30672436,140.12,140.1,0.56761113]
[1768290129302,2.80140434,140.13,140.1,0.56761113]
[1768290129504,6.02637184,140.12,140.09,7.13821668]
[1768290129705,0.71971877,140.12,140.09,7.13821668]
[1768290131725,0.71971877,140.12,140.09,7.80742853]
[1768290132929,0.71971877,140.12,140.1,0.66921185]
[1768290133128,2.80799105,140.13,140.1,0.66921185]
[1768290133329,5.30548415,140.12,140.1,0.66921185]
[1768290133521,2.80799105,140.13,140.1,0.66921185]
[1768290133829,5.30564579,140.12,140.1,0.66921185]
[1768290134014,0.71971877,140.13,140.1,0.66921185]
[1768290134215,5.3056471,140.12,140.1,0.66921185]
[1768290134415,0.70736066,140.12,140.09,7.13821668]
[1768290137305,5.3098416,140.11,140.09,7.13821668]
[1768290137529,0.70736066,140.12,140.09,7.13821668]
[1768290137736,5.3098416,140.11,140.09,7.13821668]
[1768290137926,0.70736066,140.12,140.09,7.13821668]
[1768290139010,2.79563294,140.13,140.1,0.6641148]
[1768290139213,5.31071674,140.12,140.1,0.6641148]
[1768290139536,2.79563294,140.13,140.1,0.6641148]
[1768290139712,5.31098856,140.12,140.1,0.6641148]
[1768290140032,5.31057797,140.11,140.09,0.6641148]
[1768290140218,0.70736066,140.12,140.09,0.6641148]
[1768290140412,5.31123937,140.11,140.09,0.6641148]
[1768290140611,0.70736066,140.12,140.09,0.6641148]
[1768290140928,6.01860003,140.11,140.08,9.89096538]
[1768290141128,0.70736066,140.12,140.09,0.6641148]
[1768290142131,6.01875998,140.11,140.08,9.89096538]
[1768290142334,0.70736066,140.11,140.08,9.89096538]
[1768290142540,0.70736066,140.12,140.09,2.75238708]
[1768290142735,0.70736066,140.13,140.1,0.6641148]
[1768290148124,2.79563294,140.14,140.1,0.6641148]
[1768290149041,9.93138577,140.14,140.1,0.6641148]
[1768290149739,0.70736066,140.13,140.07,7.80317076]
[1768290149939,2.79563294,140.12,140.08,0.6641148]
[1768290150142,2.79563294,140.11,140.08,0.6641148]
[1768290150546,0.70736066,140.1,140.07,7.80317076]
[1768290150718,2.08827228,140.11,140.07,7.80317076]
[1768290152339,2.08827228,140.11,140.07,7.13905596]
[1768290152540,2.08827228,140.11,140.08,0.6641148]
[1768290152726,2.79563294,140.11,140.08,0.6641148]
[1768290152930,2.79563294,140.11,140.07,7.80317076]
[1768290153344,2.79563294,140.11,140.07,9.89144304]
[1768290154635,5.31105562,140.1,140.07,9.89144304]
[1768290154837,2.79563294,140.11,140.07,9.89144304]
[1768290155036,5.31085237,140.1,140.07,9.89144304]
[1768290155236,2.79563294,140.11,140.07,9.89144304]
[1768290155538,5.30877012,140.1,140.07,7.80317076]
[1768290155743,2.79563294,140.11,140.07,7.80317076]
[1768290155943,5.30835699,140.1,140.07,7.80317076]
[1768290156145,2.79563294,140.11,140.07,7.80317076]
[1768290156454,5.30868655,140.1,140.07,7.80317076]
[1768290156657,2.79563294,140.11,140.07,7.80317076]
[1768290156948,5.30870038,140.1,140.07,7.80317076]
[1768290157158,2.79563294,140.11,140.07,7.80317076]
[1768290157335,5.30912429,140.1,140.07,7.80317076]
[1768290157530,2.79563294,140.11,140.07,7.80317076]
[1768290157747,5.30905957,140.1,140.07,7.80317076]
[1768290157929,2.79563294,140.11,140.07,7.80317076]
[1768290158223,5.30912981,140.1,140.07,7.80317076]
[1768290158429,2.79563294,140.11,140.07,7.80317076]
[1768290158652,5.30884673,140.1,140.08,0.71420453]
[1768290158836,2.08827228,140.11,140.08,0.71420453]
[1768290161040,9.22558636,140.11,140.08,0.71420453]
[1768290161456,7.13731408,140.11,140.08,0.71420453]
[1768290161752,2.08827228,140.1,140.08,0.71420453]
[1768290163457,3.26422832,140.1,140.08,0.71420453]
[1768290164652,3.95196478,140.1,140.07,0.71420453]
[1768290165657,3.26422832,140.1,140.07,0.71420453]
[1768290166355,3.26422832,140.11,140.07,0.71420453]
[1768290170762,5.3082008,140.1,140.07,0.71420453]
[1768290170952,3.26422832,140.11,140.07,0.71420453]
[1768290173865,5.30814508,140.1,140.07,0.71420453]
[1768290174161,10.40150294,140.11,140.07,0.71420453]
[1768290176668,10.55408424,140.11,140.07,0.71420453]
[1768290176864,5.30757872,140.1,140.07,0.71420453]
[1768290177067,10.55408424,140.11,140.07,0.71420453]
[1768290177368,5.30744036,140.1,140.07,0.71420453]
[1768290177569,10.55408424,140.11,140.07,0.71420453]
[1768290179764,5.99601842,140.1,140.07,0.71420453]
[1768290179965,0.68773646,140.1,140.07,0.71420453]
[1768290180475,11.09464501,140.11,140.07,0.71420453]
[1768290180779,5.30806718,140.1,140.07,0.71420453]
[1768290180945,11.09464501,140.11,140.07,0.71420453]
[1768290181141,5.30805425,140.1,140.07,0.71420453]
[1768290181362,11.09464501,140.11,140.07,0.71420453]
[1768290181551,8.5724135,140.1,140.07,0.71420453]
[1768290181754,3.26422832,140.1,140.07,0.71420453]
[1768290183678,7.83041669,140.11,140.07,0.71420453]
[1768290183973,8.57261512,140.1,140.07,0.71420453]
[1768290184154,3.26422832,140.1,140.07,0.71420453]
[1768290187989,0.1525813,140.09,140.06,11.05777183]
[1768290188178,1e-08,140.09,140.06,11.05777183]
[1768290190882,1e-08,140.09,140.06,7.79354351]
[1768290191181,1e-08,140.09,140.06,11.05777183]
[1768290193184,3.26422832,140.1,140.07,0.65393971]
[1768290196587,0.58972647,140.09,140.06,11.11174437]
[1768290197205,3.26422832,140.1,140.07,0.70791225]
[1768290199692,0.58972647,140.09,140.06,11.11174437]
[1768290200096,0.58972647,140.09,140.07,7.13927463]
[1768290202891,0.58972647,140.09,140.06,0.70791225]
[1768290203200,3.36322832,140.09,140.06,7.84757228]
[1768290203377,3.26422832,140.09,140.07,0.70791225]
[1768290203580,3.26422832,140.1,140.07,0.70791225]
[1768290203894,5.32027052,140.09,140.07,0.70791225]
[1768290204207,3.26422832,140.1,140.07,0.70791225]
[1768290204380,5.32013938,140.09,140.07,0.70791225]
[1768290204568,3.26422832,140.1,140.07,0.70791225]
[1768290204767,5.32014549,140.09,140.07,0.70791225]
[1768290204971,3.26422832,140.1,140.07,0.70791225]
[1768290205182,5.32014549,140.09,140.07,0.70791225]
[1768290205398,3.36322832,140.1,140.07,0.70791225]
[1768290205602,5.32002219,140.09,140.07,0.70791225]
[1768290205898,3.36322832,140.1,140.07,0.70791225]
[1768290206103,5.32001661,140.09,140.07,0.70791225]
[1768290206303,3.36322832,140.1,140.07,0.70791225]
[1768290206474,5.31984124,140.09,140.07,0.70791225]
[1768290206681,3.36322832,140.1,140.07,0.70791225]
[1768290206877,5.90962693,140.09,140.05,11.1124476]
[1768290207091,3.26422832,140.1,140.06,0.70791225]
[1768290207402,5.31981548,140.09,140.06,0.70791225]
[1768290207586,3.36322832,140.1,140.06,0.70791225]
[1768290207788,5.31981679,140.09,140.06,0.70791225]
[1768290207987,3.36322832,140.1,140.07,0.70791225]
[1768290213103,3.26422832,140.09,140.07,0.70791225]
[1768290215303,0.10390727,140.08,140.05,0.69605301]
[1768290215479,3.26422832,140.07,140.04,0.69605301]
[1768290215685,3.26422832,140.06,140.03,7.14130426]
[1768290218010,3.26422832,140.04,140.0,3.72593856]
[1768290218315,5.31794618,140.05,140.0,0.69605301]
[1768290218316,3.26422832,140.03,140.0,0.69605301]
[1768290218812,3.26422832,140.02,140.0,0.69605301]
[1768290220211,10.4055618,140.03,140.0,0.69605301]
[1768290222316,3.26422832,140.02,140.0,0.69605301]
[1768290223190,7.1408169,140.04,140.0,0.69605301]
[1768290223396,3.26422832,140.03,140.0,0.69605301]
[1768290223714,7.46422832,140.03,140.0,0.69605301]
[1768290225124,3.26422832,140.02,140.0,0.69605301]
[1768290225436,2.09156846,140.02,140.0,0.69605301]
[1768290228037,2.09156846,140.01,140.0,0.69605301]
[1768290228334,2.09156846,140.02,140.0,0.69605301]
[1768290230113,2.09156846,140.02,139.98,7.83984174]
[1768290231627,2.09156846,140.02,139.99,0.69605301]
[1768290231837,4.2,140.03,139.99,0.69605301]
[1768290232010,2.09156846,140.02,139.99,0.69605301]
[1768290240340,2.09156846,140.01,139.99,0.69605301]
[1768290242350,2.09156846,140.02,139.99,0.69605301]
[1768290244328,2.09156846,140.01,139.99,0.69605301]
[1768290244528,11.34138897,140.03,139.99,0.69605301]
[1768290244729,6.29156846,140.03,139.99,0.69605301]
[1768290246555,4.2,140.03,139.99,0.69605301]
[1768290246735,6.29156846,140.03,139.99,0.69605301]
[1768290247650,2.09156846,140.02,139.99,0.69605301]
[1768290248166,2.09156846,140.01,139.98,0.70242176]
[1768290249143,2.09156846,140.02,139.98,0.70242176]
[1768290249554,2.09156846,140.03,139.99,0.70242176]
[1768290252065,2.09156846,140.03,140.0,0.70242176]
[1768290252936,2.09156846,140.03,139.99,7.14314844]
[1768290252937,2.09156846,140.02,139.99,0.70242176]
[1768290253648,2.09156846,140.02,139.98,7.14356414]
[1768290253952,2.09156846,140.02,139.99,0.70242176]
[1768290257165,7.14140592,140.03,139.99,0.70242176]
[1768290257463,2.09156846,140.02,139.99,0.70242176]
[1768290263767,2.09156846,140.03,140.0,0.69860204]
[1768290263938,5.30874212,140.02,140.0,0.69860204]
[1768290264145,2.09156846,140.03,140.0,0.69860204]
[1768290264357,5.30903628,140.02,140.0,0.69860204]
[1768290264554,5.30891046,140.01,140.0,0.69860204]
[1768290264745,5.27891047,140.01,140.0,0.69860204]
[1768290264958,5.27891047,140.01,139.97,7.84299012]
[1768290265141,2.09156846,140.01,139.98,0.69860204]
[1768290267456,7.14149509,140.03,139.99,0.69860204]
[1768290267749,2.09156846,140.01,139.99,0.69860204]
[1768290268481,2.09156846,140.01,139.98,0.69860204]
[1768290269878,7.14132685,140.03,139.98,0.69860204]
[1768290270080,2.09156846,140.01,139.98,0.69860204]
[1768290270267,20.18093559,140.04,139.99,0.69860204]
[1768290270473,4.2,140.02,139.99,0.69860204]
[1768290273080,21.46,140.07,139.99,0.69860204]
[1768290273081,2.2254338,140.06,140.01,2.09156846]
[1768290273598,2.2254338,140.06,140.03,0.69860204]
[1768290274854,0.67334727,140.09,140.04,0.66784105]
[1768290275060,2.25142155,140.07,140.04,0.66784105]
[1768290276160,2.76491573,140.08,140.04,0.66784105]
[1768290276883,5.30683129,140.07,140.04,0.66784105]
[1768290277067,2.76491573,140.08,140.04,0.66784105]
[1768290277392,5.30668126,140.07,140.04,0.66784105]
[1768290277600,2.76491573,140.08,140.04,7.80844794]
[1768290277890,5.30519437,140.07,140.05,0.66784105]
[1768290278093,2.76491573,140.08,140.05,0.66784105]
[1768290279068,2.09156846,140.1,140.06,0.66784105]
[1768290279265,0.67334727,140.11,140.06,0.66784105]
[1768290279266,9.90219578,140.11,140.07,0.66784105]
[1768290280178,2.25142155,140.1,140.07,0.66784105]
[1768290283272,2.09156846,140.09,140.07,0.66784105]
[1768290285493,0.15985309,140.1,140.07,0.66784105]
[1768290285703,3.42460326,140.1,140.07,0.66784105]
[1768290286200,3.26475017,140.09,140.07,0.66784105]
[1768290287179,3.9329625,140.09,140.05,7.80798507]
[1768290287375,3.26475017,140.09,140.06,0.66784105]
[1768290291908,7.81115618,140.1,140.06,0.66784105]
[1768290292100,3.26475017,140.09,140.06,0.66784105]
[1768290294809,4.36475017,140.09,140.06,0.66784105]
[1768290300447,4.52460326,140.09,140.06,0.66784105]
[1768290301602,4.36475017,140.09,140.06,0.66784105]
[1768290302522,1.1,140.09,140.06,0.66784105]
[1768290302927,1.25985309,140.09,140.06,0.66784105]
[1768290303408,4.52460326,140.09,140.06,0.66784105]
[1768290303622,0.66821233,140.08,140.05,7.80798507]
[1768290306220,0.66821233,140.08,140.06,0.68104683]
[1768290306429,5.03944242,140.09,140.06,0.68104683]
[1768290308644,1.77469225,140.09,140.06,0.68104683]
[1768290308855,1.1,140.09,140.06,0.68104683]
[1768290309526,3.93944242,140.1,140.06,0.68104683]
[1768290310145,0.67469225,140.1,140.06,7.82081376]
[1768290310352,10.56065337,140.11,140.07,0.68104683]
[1768290310650,0.66953054,140.1,140.07,0.68104683]
[1768290311633,0.6,140.09,140.07,0.68104683]
[1768290312356,3.26475017,140.1,140.09,0.68104683]
[1768290312530,11.07682406,140.11,140.09,0.68104683]
[1768290312730,11.07682406,140.11,140.07,0.68104683]
[1768290312948,0.67469225,140.1,140.07,0.68104683]
[1768290313128,0.67469225,140.1,140.07,7.82024411]
[1768290313331,0.67469225,140.1,140.08,0.68104683]
[1768290313651,0.67469225,140.12,140.08,3.945797]
[1768290313952,0.67469225,140.12,140.09,3.945797]
[1768290314848,0.67469225,140.12,140.1,7.82554781]
[1768290315058,0.70178503,140.13,140.1,7.82554781]
[1768290316538,0.70178503,140.14,140.11,3.95253924]
[1768290316738,0.67621017,140.14,140.11,3.95253924]
[1768290317056,3.26475017,140.16,140.12,0.68778907]
[1768290317553,0.1,140.17,140.12,0.68778907]
[1768290317726,8.56559529,140.16,140.12,0.68778907]
[1768290317929,3.26475017,140.16,140.12,0.68778907]
[1768290318130,0.1,140.17,140.12,11.08915163]
[1768290318327,3.36475017,140.17,140.12,11.08915163]
[1768290318631,0.70178503,140.16,140.12,11.08915163]
[1768290319247,0.70178503,140.16,140.13,7.82381081]
[1768290321344,0.70178503,140.16,140.13,7.13602174]
[1768290323651,0.70178503,140.16,140.13,7.82381081]
[1768290327061,0.70038059,140.15,140.12,7.13668249]
[1768290327258,0.70177099,140.14,140.12,7.13668249]
[1768290327944,3.9665352,140.15,140.12,7.82447156]
[1768290331371,0.70178503,140.15,140.12,7.82447156]
[1768290340075,0.70178503,140.15,140.12,11.08922173]
[1768290340760,0.70178503,140.15,140.12,10.40143266]
[1768290340958,0.70178503,140.15,140.12,11.09141468]
[1768290342072,0.70178503,140.15,140.13,0.68998202]
[1768290342977,0.65554568,140.16,140.13,0.68998202]
[1768290343578,4.02029585,140.17,140.14,0.68998202]
[1768290344076,0.65554568,140.16,140.14,0.68998202]
[1768290346593,0.65554568,140.16,140.14,0.62998202]
[1768290346884,0.65554568,140.16,140.13,7.13622449]
[1768290348482,0.65554568,140.16,140.14,0.68998202]
[1768290349580,2.84273947,140.17,140.14,0.68998202]
[1768290349798,0.1,140.17,140.15,0.68998202]
[1768290351286,0.1,140.17,140.16,0.68998202]
[1768290352760,0.1,140.17,140.15,0.68998202]
[1768290361690,0.75554568,140.17,140.15,0.68998202]
[1768290361870,0.1,140.17,140.15,0.68998202]
[1768290363581,2.84273947,140.17,140.13,0.68998202]
[1768290363782,2.74273947,140.15,140.12,0.68998202]
[1768290364286,9.2220702,140.16,140.11,0.68998202]
[1768290364488,2.08719379,140.13,140.11,0.68998202]
[1768290364791,2.08719379,140.13,140.09,0.69387272]
[1768290364976,2.08719379,140.13,140.11,0.69387272]
[1768290365683,2.08719379,140.13,140.1,0.69387272]
[1768290366287,0.14573572,140.12,140.09,7.83214097]
[1768290366490,0.6664867,140.14,140.09,2.78106651]
[1768290366694,2.75368049,140.14,140.11,0.69387272]
[1768290367190,0.14573572,140.13,140.1,0.69387272]
[1768290367412,0.11573573,140.13,140.1,0.69387272]
[1768290369187,2.08719379,140.12,140.08,7.8324769]
[1768290369490,0.12148519,140.09,140.06,0.69387272]
[1768290369669,2.08719379,140.09,140.05,0.69387272]
[1768290369997,2.08719379,140.1,140.06,7.13965392]
[1768290370983,2.08719379,140.1,140.06,7.83352664]
[1768290371683,0.099,140.09,140.06,7.83352664]
[1768290374178,0.099,140.09,140.06,7.13965392]
[1768290374989,2.08719379,140.1,140.06,7.83352664]
[1768290375188,2.64940311,140.1,140.07,0.67361954]
[1768290376203,0.099,140.09,140.06,7.81327346]
[1768290376380,2.18619379,140.09,140.06,7.81327346]
[1768290377203,1e-08,140.09,140.06,7.81327346]
[1768290378577,2.08719379,140.1,140.07,0.67361954]
[1768290379100,2.08719379,140.11,140.07,0.67361954]
[1768290379902,13.48320932,140.12,140.06,9.22684771]
[1768290379903,2.08719379,140.12,140.09,0.67361954]
[1768290380085,2.55040311,140.13,140.09,0.67361954]
[1768290380403,2.55040311,140.13,140.1,0.67361954]
[1768290380714,0.45956722,140.11,140.09,7.13795602]
[1768290380880,0.45956722,140.11,140.08,7.13869756]
[1768290381605,13.02,140.14,140.09,7.81168865]
[1768290381809,2.08719379,140.13,140.09,7.81168865]
[1768290383612,2.08719379,140.12,140.09,7.81168865]
[1768290383791,2.08719379,140.12,140.08,7.81224747]
[1768290384293,2.08719379,140.12,140.09,7.13824326]
[1768290384496,2.08719379,140.11,140.08,0.67361954]
[1768290384702,2.08719379,140.09,140.05,0.67361954]
[1768290385004,2.08719379,140.08,140.05,7.13995378]
[1768290385211,2.08719379,140.08,140.05,7.81357332]
[1768290385606,20.17767307,140.11,140.05,7.81357332]
[1768290385806,2.08719379,140.08,140.05,7.81357332]
[1768290386318,2.08719379,140.08,140.05,0.67361954]
[1768290387187,2.08719379,140.07,140.04,0.67361954]
[1768290388393,38.02079633,140.11,140.04,0.67361954]
[1768290388615,2.08719379,140.07,140.04,0.67361954]
[1768290389302,2.08719379,140.08,140.04,7.81443369]
[1768290389611,2.08719379,140.08,140.04,9.90162748]
[1768290390700,7.13827594,140.09,140.05,0.67361954]
[1768290390901,17.84097754,140.13,140.06,0.67361954]
[1768290391118,2.08719379,140.11,140.08,0.67361954]
[1768290391821,2.08719379,140.11,140.07,2.08719379]
[1768290391822,2.08719379,140.11,140.07,2.76081333]
[1768290391996,2.08719379,140.11,140.07,0.67361954]
[1768290392199,2.08719379,140.1,140.07,0.67361954]
[1768290392811,2.08719379,140.09,140.06,0.67361954]
[1768290393499,2.08719379,140.1,140.06,7.81338721]
[1768290394493,2.08719379,140.1,140.06,9.900581]
[1768290394918,2.08719379,140.1,140.06,0.67361954]
[1768290395214,2.08719379,140.09,140.05,0.66260194]
[1768290395396,2.08719379,140.09,140.05,2.74979573]
[1768290395822,2.08719379,140.09,140.05,0.66260194]
[1768290396021,2.08719379,140.09,140.05,2.74979573]
[1768290397803,2.08719379,140.09,140.05,0.66260194]
[1768290398004,2.08719379,140.08,140.05,0.66260194]
[1768290398226,2.08719379,140.07,140.04,0.66260194]
[1768290399303,24.98123846,140.11,140.04,0.66260194]
[1768290399504,2.08719379,140.07,140.04,0.66260194]
[1768290400930,2.08719379,140.07,140.04,7.80334752]
[1768290401123,2.08719379,140.08,140.04,7.80334752]
[1768290401429,2.08719379,140.08,140.04,9.89054131]
[1768290402332,2.08719379,140.08,140.04,7.80334752]
[1768290402633,2.08719379,140.08,140.04,9.89054131]
[1768290403033,2.08719379,140.08,140.04,7.80334752]
[1768290404530,2.08719379,140.08,140.05,0.66260194]
[1768290406240,15.12719379,140.09,140.05,0.66260194]
[1768290407238,22.26551844,140.09,140.05,0.66260194]
[1768290407450,23.44353457,140.09,140.05,0.66260194]
[1768290407819,20.17832465,140.09,140.04,0.66260194]
[1768290408130,3.26520992,140.08,140.04,0.66260194]
[1768290409210,3.26520992,140.07,140.03,7.14117652]
[1768290409533,3.26520992,140.07,140.03,7.80377846]
[1768290409943,20.17832465,140.09,140.02,0.66260194]
[1768290409944,8.56700004,140.06,140.02,0.66260194]
[1768290410238,38.02399529,140.09,140.02,0.66260194]
[1768290410538,3.26520992,140.06,140.02,0.66260194]
[1768290411325,3.26520992,140.05,140.02,0.66260194]
[1768290413349,10.40581702,140.05,140.02,0.66260194]
[1768290415235,3.26520992,140.04,140.02,0.66260194]
[1768290416355,10.40581702,140.05,140.02,0.66260194]
[1768290416942,7.1406071,140.05,140.02,0.66260194]
[1768290417137,10.40581702,140.05,140.02,0.66260194]
[1768290420539,3.26520992,140.03,139.99,0.86260194]
[1768290420839,3.26520992,140.01,139.99,0.2]
[1768290421224,3.26520992,140.02,139.99,0.2]
[1768290422348,7.14132685,140.03,139.99,0.2]
[1768290422553,3.26520992,140.02,139.99,0.2]
[1768290423456,10.40721972,140.02,139.99,0.2]
[1768290424253,3.26520992,140.02,139.99,0.2]
[1768290425135,3.26520992,140.02,139.99,0.89553627]
[1768290425435,3.26520992,140.02,140.0,0.69553627]
[1768290425849,3.26520992,140.03,140.0,0.69553627]
[1768290428263,3.26520992,140.01,139.99,0.2]
[1768290428434,7.14149736,140.03,139.99,0.2]
[1768290428634,3.26520992,140.01,139.99,0.2]
[1768290430954,3.26520992,140.02,139.99,0.89553627]
[1768290433860,3.26520992,140.01,139.99,0.2]
[1768290434235,7.14196772,140.02,139.99,0.2]
[1768290434448,3.26520992,140.0,139.99,0.2]
[1768290437151,10.40778144,140.01,139.99,0.2]
[1768290437547,3.26520992,140.01,139.99,0.2]
[1768290438259,3.26520992,140.02,139.99,0.2]
[1768290441253,7.14151396,140.03,139.99,0.86411043]
[1768290441467,3.26520992,140.02,139.99,0.86411043]
[1768290448865,10.40710659,140.02,139.99,0.86411043]
[1768290449371,3.26520992,140.02,139.99,0.86411043]
[1768290450674,20.18081012,140.05,140.0,0.66411043]
[1768290450848,5.29121887,140.04,140.0,0.66411043]
[1768290451052,3.26520992,140.04,140.0,0.66411043]
[1768290451349,5.29316532,140.03,140.0,0.66411043]
[1768290451564,3.26520992,140.04,140.0,0.66411043]
[1768290451875,5.29343115,140.03,140.0,0.66411043]
[1768290452176,3.26520992,140.03,140.0,0.66411043]
[1768290456487,8.56479577,140.02,140.0,0.66411043]
[1768290456659,3.26520992,140.02,140.0,0.66411043]
[1768290460289,3.26520992,140.03,140.0,0.66411043]
[1768290460582,5.30327238,140.02,140.0,0.66411043]
[1768290460878,3.26520992,140.03,140.0,0.66411043]
[1768290461077,5.30327238,140.02,140.0,0.66411043]
[1768290461259,3.26520992,140.03,140.0,0.66411043]
[1768290461461,5.30433964,140.02,140.0,0.66411043]
[1768290461661,3.26520992,140.03,140.0,0.66411043]
[1768290461877,5.30433964,140.02,140.0,0.66411043]
[1768290462184,10.40659671,140.03,140.0,0.66411043]
[1768290462384,5.30545209,140.02,140.0,0.66411043]
[1768290462592,10.40659671,140.03,140.0,0.66411043]
[1768290462885,5.30548765,140.02,140.0,0.66411043]
[1768290463181,10.40659671,140.03,140.0,0.66411043]
[1768290463483,5.30611389,140.02,140.0,0.66411043]
[1768290463662,10.40659671,140.03,140.0,0.66411043]
[1768290463863,5.30619915,140.02,140.0,0.66411043]
[1768290464066,10.40659671,140.03,140.0,0.66411043]
[1768290464266,5.30619394,140.02,140.0,0.66411043]
[1768290464467,5.30619394,140.01,140.0,0.66411043]
[1768290464675,10.40659671,140.03,140.0,0.66411043]
[1768290465383,3.26520992,140.03,140.0,0.66411043]
[1768290468188,7.1408169,140.04,140.0,0.66411043]
[1768290468391,3.26520992,140.03,140.0,0.66411043]
[1768290469398,2.09153091,140.03,140.0,0.66411043]
[1768290469889,9.23286108,140.03,140.0,0.66411043]
[1768290470388,7.14133017,140.03,140.0,0.66411043]
[1768290470566,9.23286108,140.03,140.0,0.66411043]
[1768290472098,2.09153091,140.03,140.0,0.66411043]
[1768290472592,17.85151557,140.05,140.0,0.66411043]
[1768290472593,2.09153091,140.04,140.0,0.66411043]
[1768290474085,2.09153091,140.04,140.01,0.66281899]
[1768290476580,5.30881943,140.03,140.01,0.66281899]
[1768290476781,5.27881944,140.02,140.0,9.23425702]
[1768290476999,2.09153091,140.04,140.0,9.23425702]
[1768290477171,2.09153091,140.04,140.01,0.66281899]
[1768290481696,9.23198124,140.05,140.01,0.66281899]
[1768290482897,7.13979722,140.06,140.01,0.66281899]
[1768290483083,2.09153091,140.04,140.01,0.66281899]
[1768290483689,2.09153091,140.05,140.01,0.66281899]
[1768290484294,9.23188607,140.05,140.01,0.66281899]
[1768290487996,7.13979722,140.06,140.02,0.72271453]
[1768290488187,9.23132813,140.06,140.03,0.72271453]
[1768290488892,5.31114108,140.05,140.03,0.72271453]
[1768290489099,5.31114108,140.04,140.03,0.72271453]
[1768290496425,7.13979722,140.06,140.01,9.23370619]
[1768290496629,9.23132813,140.06,140.02,2.09153091]
[1768290497034,9.23132813,140.06,140.03,0.71210378]
[1768290497926,9.90347493,140.06,140.03,0.71210378]
[1768290498325,7.81194402,140.06,140.03,0.71210378]
[1768290499131,2.76899168,140.08,140.04,0.71210378]
[1768290499712,9.90783349,140.08,140.04,0.71210378]
[1768290500339,7.81630258,140.08,140.05,0.71210378]
[1768290500936,7.13884181,140.08,140.05,0.71210378]
[1768290501530,0.14606383,140.1,140.06,0.71210378]
[1768290501723,2.23759474,140.1,140.06,0.71210378]
[1768290502623,9.37547084,140.1,140.06,0.71210378]
[1768290503518,2.09153091,140.09,140.06,0.71210378]
[1768290504813,0.66693858,140.07,140.04,0.71210378]
[1768290505019,0.67746077,140.08,140.04,0.71210378]
[1768290505225,2.76899168,140.08,140.04,0.71210378]
[1768290506516,2.76899168,140.13,140.08,0.71210378]
[1768290506836,7.13584546,140.14,140.1,2.09153091]
[1768290506837,0.67746077,140.14,140.1,2.09153091]
[1768290507940,0.67746077,140.14,140.09,9.22935743]
[1768290508135,0.67746077,140.14,140.09,7.13782652]
[1768290508136,0.20546383,140.13,140.09,7.13782652]
[1768290508342,0.6727408,140.12,140.09,7.13782652]
[1768290508646,0.6727408,140.12,140.09,7.8499303]
[1768290508824,2.76899168,140.13,140.1,0.71210378]
[1768290509023,2.76899168,140.13,140.1,0.65210379]
[1768290509621,0.26486382,140.12,140.09,7.13782652]
[1768290509828,0.26486382,140.12,140.07,17.84749175]
[1768290510317,2.35639473,140.12,140.07,17.84749175]
[1768290510518,2.09153091,140.11,140.06,22.27132813]
[1768290510943,2.09153091,140.11,140.07,0.71210378]
[1768290511330,2.76899168,140.12,140.08,0.71210378]
[1768290517625,9.90051217,140.14,140.1,0.67039982]
[1768290518246,0.67323461,140.14,140.11,0.67039982]
[1768290518747,0.67323461,140.14,140.11,0.61039983]
[1768290519633,0.67323461,140.15,140.11,2.70193074]
[1768290519947,0.67323461,140.15,140.11,2.09153091]
[1768290520248,0.67323461,140.15,140.1,2.09153091]
[1768290520448,0.67323461,140.15,140.11,7.13713978]
[1768290520650,0.67323461,140.15,140.12,0.67039982]
[1768290520956,2.76476552,140.16,140.12,0.67039982]
[1768290521526,2.86476552,140.17,140.13,0.67039982]
[1768290521742,0.1,140.17,140.14,0.61039986]
[1768290522331,2.19153091,140.17,140.14,0.61039986]
[1768290527235,0.1,140.17,140.14,0.61039986]
[1768290527436,0.66758367,140.14,140.1,0.67039982]
[1768290527648,2.09153091,140.13,140.09,7.13783932]
[1768290527957,2.09153091,140.14,140.11,0.67039982]
[1768290528963,2.09153091,140.13,140.11,0.67039982]